[Event "Late-Titled-Tuesday-Blitz-March-05-2024"]
[Site "Chess.com"]
[Date "2024.03.05"]
[Round "6"]
[White "GrotBchess"]
[Black "DeArron_Fox"]
[Result "0-1"]
[WhiteElo "2383"]
[BlackElo "2544"]
[TimeControl "180+1"]
[EndTime "15:03:51 PST"]
[Termination "DeArron_Fox won by resignation"]

1. d4 {[%clk 0:02:59.1]} 1... d5 {[%clk 0:02:59.8]} 2. Nf3 {[%clk 0:02:54]} 2...
Nf6 {[%clk 0:02:59.3]} 3. c4 {[%clk 0:02:54]} 3... e6 {[%clk 0:02:59.7]} 4. g3
{[%clk 0:02:54]} 4... Bb4+ {[%clk 0:02:59.3]} 5. Nbd2 {[%clk 0:02:54]} 5... O-O
{[%clk 0:02:58.5]} 6. Bg2 {[%clk 0:02:54]} 6... b6 {[%clk 0:02:59]} 7. O-O
{[%clk 0:02:53.9]} 7... Bb7 {[%clk 0:02:59.5]} 8. Qc2 {[%clk 0:02:53.9]} 8...
Nbd7 {[%clk 0:02:57.9]} 9. a3 {[%clk 0:02:53.9]} 9... Be7 {[%clk 0:02:57.9]} 10.
Rd1 {[%clk 0:02:52.9]} 10... c5 {[%clk 0:02:56.4]} 11. dxc5 {[%clk 0:02:51]}
11... Bxc5 {[%clk 0:02:57.3]} 12. b4 {[%clk 0:02:50.6]} 12... Be7 {[%clk
0:02:55.7]} 13. Bb2 {[%clk 0:02:50.8]} 13... Rc8 {[%clk 0:02:56.2]} 14. Rac1
{[%clk 0:02:42.8]} 14... dxc4 {[%clk 0:02:55.1]} 15. Qb1 {[%clk 0:02:29.1]}
15... b5 {[%clk 0:02:49.5]} 16. Nxc4 {[%clk 0:02:19.3]} 16... bxc4 {[%clk
0:02:43.9]} 17. Ng5 {[%clk 0:02:13.2]} 17... Bxg2 {[%clk 0:02:06.7]} 18. Bxf6
{[%clk 0:02:12.3]} 18... g6 {[%clk 0:02:07.2]} 19. Bxe7 {[%clk 0:02:11.7]} 19...
Qxe7 {[%clk 0:02:05.2]} 20. Kxg2 {[%clk 0:02:11.9]} 20... Nb6 {[%clk 0:01:44.8]}
21. Ne4 {[%clk 0:02:07.9]} 21... Rfd8 {[%clk 0:01:41.7]} 22. Qb2 {[%clk
0:02:03.1]} 22... Qb7 {[%clk 0:01:37.1]} 23. f3 {[%clk 0:02:01.1]} 23... Nd5
{[%clk 0:00:58.4]} 24. Rd4 {[%clk 0:01:38.6]} 24... c3 {[%clk 0:00:53.6]} 25.
Rxc3 {[%clk 0:01:09.9]} 25... Rxc3 {[%clk 0:00:39.2]} 26. Rxd5 {[%clk
0:01:02.8]} 26... exd5 {[%clk 0:00:39]} 27. Nf6+ {[%clk 0:01:02.2]} 27... Kg7
{[%clk 0:00:37.1]} 28. Qxc3 {[%clk 0:00:46.6]} 28... d4 {[%clk 0:00:37.2]} 0-1

[Event "Late-Titled-Tuesday-Blitz-March-05-2024"]
[Site "Chess.com"]
[Date "2024.03.05"]
[Round "6"]
[White "secretsuperstar7"]
[Black "Agibileg"]
[Result "0-1"]
[WhiteElo "2510"]
[BlackElo "2653"]
[TimeControl "180+1"]
[EndTime "15:04:03 PST"]
[Termination "Agibileg won by checkmate"]

1. c4 {[%clk 0:02:56.6]} 1... Nf6 {[%clk 0:02:58.5]} 2. Nc3 {[%clk 0:02:53.3]}
2... e6 {[%clk 0:02:57.5]} 3. e4 {[%clk 0:02:51.9]} 3... e5 {[%clk 0:02:56.4]}
4. Nf3 {[%clk 0:02:50.7]} 4... d6 {[%clk 0:02:56.5]} 5. d4 {[%clk 0:02:50.4]}
5... Nc6 {[%clk 0:02:55.3]} 6. d5 {[%clk 0:02:48.8]} 6... Ne7 {[%clk 0:02:55.1]}
7. Be2 {[%clk 0:02:47.4]} 7... g6 {[%clk 0:02:38.5]} 8. O-O {[%clk 0:02:47.2]}
8... Bg7 {[%clk 0:02:36.9]} 9. Rb1 {[%clk 0:02:46.6]} 9... O-O {[%clk
0:02:35.4]} 10. b4 {[%clk 0:02:46.5]} 10... Nd7 {[%clk 0:02:35.5]} 11. Be3
{[%clk 0:02:38.3]} 11... f5 {[%clk 0:02:33.9]} 12. Ng5 {[%clk 0:02:37.7]} 12...
Nf6 {[%clk 0:02:34.2]} 13. c5 {[%clk 0:02:27.1]} 13... h6 {[%clk 0:02:16.3]} 14.
Ne6 {[%clk 0:02:25.6]} 14... Bxe6 {[%clk 0:02:16.5]} 15. dxe6 {[%clk 0:02:25.7]}
15... fxe4 {[%clk 0:02:16.1]} 16. Bc4 {[%clk 0:02:10.2]} 16... d5 {[%clk
0:02:12.7]} 17. Bb3 {[%clk 0:01:56.6]} 17... d4 {[%clk 0:02:12.7]} 18. Bd2
{[%clk 0:01:45.9]} 18... dxc3 {[%clk 0:02:08.1]} 19. Bxc3 {[%clk 0:01:46.8]}
19... Nfd5 {[%clk 0:02:07.2]} 20. Bb2 {[%clk 0:01:41.8]} 20... c6 {[%clk
0:02:06.1]} 21. Qe2 {[%clk 0:01:41.3]} 21... Qc8 {[%clk 0:02:01.9]} 22. Qxe4
{[%clk 0:01:37]} 22... Qxe6 {[%clk 0:02:02]} 23. Rfe1 {[%clk 0:01:36.6]} 23...
Rf5 {[%clk 0:01:56.2]} 24. f4 {[%clk 0:01:27]} 24... Raf8 {[%clk 0:01:49.5]} 25.
fxe5 {[%clk 0:01:20]} 25... Kh7 {[%clk 0:01:46]} 26. Re2 {[%clk 0:01:14.1]}
26... Rf4 {[%clk 0:01:44.1]} 27. Qc2 {[%clk 0:01:08.4]} 27... Rxb4 {[%clk
0:01:34.3]} 28. Re4 {[%clk 0:01:01.6]} 28... Rxe4 {[%clk 0:01:28.1]} 29. Qxe4
{[%clk 0:01:01.3]} 29... Qf5 {[%clk 0:01:19.1]} 30. Qe1 {[%clk 0:01:00.8]} 30...
Nf4 {[%clk 0:01:15]} 31. Rd1 {[%clk 0:00:45.3]} 31... Qg4 {[%clk 0:01:09]} 32.
Qd2 {[%clk 0:00:33]} 32... Ne2+ {[%clk 0:01:01.6]} 33. Kh1 {[%clk 0:00:32.3]}
33... Rf2 {[%clk 0:01:02.1]} 34. g3 {[%clk 0:00:28.8]} 34... Qf3# {[%clk
0:00:58.6]} 0-1

[Event "Late-Titled-Tuesday-Blitz-March-05-2024"]
[Site "Chess.com"]
[Date "2024.03.05"]
[Round "6"]
[White "BeanScreen"]
[Black "traack"]
[Result "1-0"]
[WhiteElo "2707"]
[BlackElo "2431"]
[TimeControl "180+1"]
[EndTime "15:04:07 PST"]
[Termination "BeanScreen won by checkmate"]

1. e4 {[%clk 0:03:00.9]} 1... c5 {[%clk 0:02:56.7]} 2. c3 {[%clk 0:03:00.8]}
2... Nf6 {[%clk 0:02:55.9]} 3. e5 {[%clk 0:03:00.9]} 3... Nd5 {[%clk 0:02:56.5]}
4. Nf3 {[%clk 0:03:01.2]} 4... e6 {[%clk 0:02:56.3]} 5. d4 {[%clk 0:03:00.9]}
5... cxd4 {[%clk 0:02:54]} 6. cxd4 {[%clk 0:03:01.8]} 6... d6 {[%clk 0:02:54.3]}
7. Bc4 {[%clk 0:03:00.9]} 7... Be7 {[%clk 0:02:54.6]} 8. O-O {[%clk 0:03:00.2]}
8... O-O {[%clk 0:02:54.8]} 9. Qe2 {[%clk 0:02:59.4]} 9... b6 {[%clk 0:02:54.5]}
10. Nc3 {[%clk 0:02:32.2]} 10... Nxc3 {[%clk 0:02:50.6]} 11. bxc3 {[%clk
0:02:32.2]} 11... Bb7 {[%clk 0:02:50]} 12. Bd3 {[%clk 0:02:29.7]} 12... Nd7
{[%clk 0:02:49.1]} 13. Bf4 {[%clk 0:02:26.8]} 13... dxe5 {[%clk 0:02:47.9]} 14.
Nxe5 {[%clk 0:02:24.3]} 14... Bf6 {[%clk 0:02:42.7]} 15. Rad1 {[%clk 0:02:12.6]}
15... g6 {[%clk 0:02:40.5]} 16. Bh6 {[%clk 0:02:10.4]} 16... Re8 {[%clk
0:02:39.6]} 17. Bb5 {[%clk 0:02:04.4]} 17... Re7 {[%clk 0:02:17.7]} 18. Nxd7
{[%clk 0:02:02.8]} 18... Rxd7 {[%clk 0:02:17.2]} 19. Bxd7 {[%clk 0:02:03.7]}
19... Qxd7 {[%clk 0:02:18]} 20. c4 {[%clk 0:01:48.7]} 20... Rc8 {[%clk
0:02:17.3]} 21. d5 {[%clk 0:01:31.7]} 21... exd5 {[%clk 0:02:09.8]} 22. Qf3
{[%clk 0:01:31.5]} 22... Bg7 {[%clk 0:01:55]} 23. Bxg7 {[%clk 0:01:30.1]} 23...
Kxg7 {[%clk 0:01:55.9]} 24. cxd5 {[%clk 0:01:29.9]} 24... Rc5 {[%clk 0:01:56.2]}
25. Rd2 {[%clk 0:01:20.7]} 25... Bxd5 {[%clk 0:01:54.8]} 26. Qf4 {[%clk
0:01:20.2]} 26... Qe6 {[%clk 0:01:52.5]} 27. Qd4+ {[%clk 0:01:11.2]} 27... Kg8
{[%clk 0:01:51]} 28. h4 {[%clk 0:01:07.5]} 28... Bxa2 {[%clk 0:01:46.7]} 29.
Qd8+ {[%clk 0:01:01]} 29... Kg7 {[%clk 0:01:47]} 30. Rd6 {[%clk 0:00:58.6]}
30... Qf5 {[%clk 0:01:38.5]} 31. h5 {[%clk 0:00:57.7]} 31... gxh5 {[%clk
0:01:08]} 32. Rd3 {[%clk 0:00:48.7]} 32... Rc6 {[%clk 0:00:57.6]} 33. Qd4+
{[%clk 0:00:41.8]} 33... Kg8 {[%clk 0:00:46.3]} 34. Qa1 {[%clk 0:00:41]} 34...
Bc4 {[%clk 0:00:43]} 35. Rd8# {[%clk 0:00:40.5]} 1-0

[Event "Late-Titled-Tuesday-Blitz-March-05-2024"]
[Site "Chess.com"]
[Date "2024.03.05"]
[Round "6"]
[White "PawnEatingZombie"]
[Black "TheAlienParty"]
[Result "0-1"]
[WhiteElo "2172"]
[BlackElo "2397"]
[TimeControl "180+1"]
[EndTime "15:04:08 PST"]
[Termination "TheAlienParty won by resignation"]

1. e4 {[%clk 0:02:57.2]} 1... e5 {[%clk 0:02:59.2]} 2. Nf3 {[%clk 0:02:56.5]}
2... Nc6 {[%clk 0:02:58.9]} 3. Nc3 {[%clk 0:02:56.9]} 3... Bb4 {[%clk
0:02:57.8]} 4. Bb5 {[%clk 0:02:52.8]} 4... Bxc3 {[%clk 0:02:56.7]} 5. bxc3
{[%clk 0:02:50.2]} 5... d6 {[%clk 0:02:56.4]} 6. O-O {[%clk 0:02:44.6]} 6... Bd7
{[%clk 0:02:48.6]} 7. d4 {[%clk 0:02:37]} 7... Nf6 {[%clk 0:02:45.8]} 8. Re1
{[%clk 0:02:34.5]} 8... O-O {[%clk 0:02:40.7]} 9. h3 {[%clk 0:02:26.5]} 9... h6
{[%clk 0:02:39.8]} 10. Rb1 {[%clk 0:02:14.1]} 10... Re8 {[%clk 0:02:37.7]} 11.
Bd3 {[%clk 0:02:12.3]} 11... b6 {[%clk 0:02:32]} 12. Bb2 {[%clk 0:02:01.3]}
12... a5 {[%clk 0:02:28.2]} 13. a3 {[%clk 0:01:54.6]} 13... Nh7 {[%clk
0:02:19.6]} 14. Bc4 {[%clk 0:01:46.8]} 14... Ng5 {[%clk 0:02:15.9]} 15. Bc1
{[%clk 0:01:42.9]} 15... Qf6 {[%clk 0:02:06.6]} 16. Nxg5 {[%clk 0:01:40.1]}
16... hxg5 {[%clk 0:02:06.1]} 17. Re3 {[%clk 0:01:05.8]} 17... exd4 {[%clk
0:02:03.2]} 18. Rf3 {[%clk 0:01:05.6]} 18... Qe5 {[%clk 0:01:54.3]} 19. Bxf7+
{[%clk 0:01:04.9]} 19... Kh7 {[%clk 0:01:47.4]} 20. Bxe8 {[%clk 0:01:05.8]}
20... Rxe8 {[%clk 0:01:39.5]} 21. Rf7 {[%clk 0:00:57.5]} 21... Qe6 {[%clk
0:01:31.4]} 22. Qh5+ {[%clk 0:00:50.7]} 22... Kg8 {[%clk 0:01:30.7]} 23. Bxg5
{[%clk 0:00:44]} 23... Qxf7 {[%clk 0:01:29.2]} 24. Qh4 {[%clk 0:00:31]} 24...
dxc3 {[%clk 0:01:28.5]} 25. Re1 {[%clk 0:00:27.3]} 25... Nd4 {[%clk 0:01:18.7]}
26. Re3 {[%clk 0:00:26.3]} 26... Ne6 {[%clk 0:01:05.3]} 27. Bh6 {[%clk
0:00:13.4]} 27... gxh6 {[%clk 0:01:02.1]} 28. Qxh6 {[%clk 0:00:11.7]} 28... Ng7
{[%clk 0:00:58.5]} 29. Rg3 {[%clk 0:00:11]} 29... Re6 {[%clk 0:00:57.4]} 0-1

[Event "Late-Titled-Tuesday-Blitz-March-05-2024"]
[Site "Chess.com"]
[Date "2024.03.05"]
[Round "6"]
[White "Smoking_Crow"]
[Black "GilbertoHernandezAmura"]
[Result "1-0"]
[WhiteElo "2621"]
[BlackElo "2473"]
[TimeControl "180+1"]
[EndTime "15:04:16 PST"]
[Termination "Smoking_Crow won by checkmate"]

1. c4 {[%clk 0:03:00.9]} 1... Nf6 {[%clk 0:02:56.3]} 2. Nc3 {[%clk 0:03:00]}
2... g6 {[%clk 0:02:56.4]} 3. e4 {[%clk 0:02:59.8]} 3... c5 {[%clk 0:02:53.7]}
4. Nf3 {[%clk 0:02:58]} 4... Bg7 {[%clk 0:02:52]} 5. d4 {[%clk 0:02:58.2]} 5...
cxd4 {[%clk 0:02:46.7]} 6. Nxd4 {[%clk 0:02:59.1]} 6... O-O {[%clk 0:02:45.8]}
7. Be2 {[%clk 0:02:58.5]} 7... Nc6 {[%clk 0:02:45.8]} 8. Be3 {[%clk 0:02:57.9]}
8... d6 {[%clk 0:02:38.3]} 9. O-O {[%clk 0:02:56.9]} 9... Be6 {[%clk 0:02:36.9]}
10. Nxe6 {[%clk 0:02:55.4]} 10... fxe6 {[%clk 0:02:37.8]} 11. Rc1 {[%clk
0:02:52.9]} 11... Rc8 {[%clk 0:02:32.2]} 12. Qd2 {[%clk 0:02:50.3]} 12... Nd7
{[%clk 0:02:21.5]} 13. b3 {[%clk 0:02:48.8]} 13... a6 {[%clk 0:02:07.6]} 14. Bg4
{[%clk 0:02:47.1]} 14... e5 {[%clk 0:01:51]} 15. Nd5 {[%clk 0:02:41.3]} 15...
Rb8 {[%clk 0:01:36.9]} 16. Bxd7 {[%clk 0:02:27.8]} 16... Qxd7 {[%clk 0:01:36.3]}
17. c5 {[%clk 0:02:27.4]} 17... Rbd8 {[%clk 0:01:19.2]} 18. cxd6 {[%clk
0:02:26.1]} 18... exd6 {[%clk 0:01:20.1]} 19. f3 {[%clk 0:02:25.4]} 19... Rf7
{[%clk 0:01:13.6]} 20. Rfd1 {[%clk 0:02:22.8]} 20... Bf8 {[%clk 0:01:12.6]} 21.
Bg5 {[%clk 0:02:21.1]} 21... Be7 {[%clk 0:01:06.1]} 22. Be3 {[%clk 0:02:19.6]}
22... Qe6 {[%clk 0:00:56.1]} 23. Qe2 {[%clk 0:02:17.1]} 23... Rd7 {[%clk
0:00:52.1]} 24. Qc4 {[%clk 0:02:15]} 24... Bf8 {[%clk 0:00:47.7]} 25. Bg5 {[%clk
0:02:07.2]} 25... Kg7 {[%clk 0:00:43.3]} 26. Nb6 {[%clk 0:01:58.4]} 26... Qxc4
{[%clk 0:00:40.6]} 27. Nxc4 {[%clk 0:01:58.6]} 27... Nd4 {[%clk 0:00:31.2]} 28.
Kf2 {[%clk 0:01:54]} 28... Rc7 {[%clk 0:00:31.5]} 29. Be3 {[%clk 0:01:53.5]}
29... b5 {[%clk 0:00:28.7]} 30. Na5 {[%clk 0:01:51.6]} 30... Nc2 {[%clk
0:00:24.3]} 31. Bb6 {[%clk 0:01:48.3]} 31... Rc8 {[%clk 0:00:14.7]} 32. Rd2
{[%clk 0:01:48.2]} 32... Rb8 {[%clk 0:00:08.1]} 33. Rdxc2 {[%clk 0:01:48.3]}
33... Rxb6 {[%clk 0:00:08.3]} 34. Rc7 {[%clk 0:01:46.6]} 34... h5 {[%clk
0:00:05.4]} 35. Rxf7+ {[%clk 0:01:46.4]} 35... Kxf7 {[%clk 0:00:05.9]} 36. Rc7+
{[%clk 0:01:46.8]} 36... Ke6 {[%clk 0:00:06.5]} 37. Ke3 {[%clk 0:01:41.1]} 37...
Be7 {[%clk 0:00:06.9]} 38. Nc6 {[%clk 0:01:36.6]} 38... Bf8 {[%clk 0:00:06.8]}
39. Nd8+ {[%clk 0:01:32.1]} 39... Kf6 {[%clk 0:00:07]} 40. Rf7+ {[%clk
0:01:31.4]} 40... Kg5 {[%clk 0:00:07.4]} 41. Ne6+ {[%clk 0:01:30]} 41... Kh6
{[%clk 0:00:06.7]} 42. Rxf8 {[%clk 0:01:30.9]} 42... Rc6 {[%clk 0:00:07.1]} 43.
Rh8# {[%clk 0:01:30.8]} 1-0

[Event "Late-Titled-Tuesday-Blitz-March-05-2024"]
[Site "Chess.com"]
[Date "2024.03.05"]
[Round "6"]
[White "Jospem"]
[Black "Chopper1905"]
[Result "1-0"]
[WhiteElo "3103"]
[BlackElo "2968"]
[TimeControl "180+1"]
[EndTime "15:04:17 PST"]
[Termination "Jospem won on time"]

1. e4 {[%clk 0:03:00.9]} 1... e5 {[%clk 0:02:59.9]} 2. Nf3 {[%clk 0:03:00.9]}
2... Nc6 {[%clk 0:03:00.3]} 3. Nc3 {[%clk 0:03:01.7]} 3... Nf6 {[%clk
0:03:00.3]} 4. h3 {[%clk 0:03:02.3]} 4... Bb4 {[%clk 0:02:54.6]} 5. a3 {[%clk
0:03:02.2]} 5... Bxc3 {[%clk 0:02:47.3]} 6. dxc3 {[%clk 0:03:03.1]} 6... Nxe4
{[%clk 0:02:34.1]} 7. Nxe5 {[%clk 0:03:02.9]} 7... Nxe5 {[%clk 0:02:32.8]} 8.
Qd4 {[%clk 0:03:02.2]} 8... O-O {[%clk 0:02:24.5]} 9. Qxe4 {[%clk 0:03:02]} 9...
d5 {[%clk 0:02:13.8]} 10. Qa4 {[%clk 0:03:01.6]} 10... Qe8 {[%clk 0:01:38.9]}
11. Qxe8 {[%clk 0:02:59]} 11... Rxe8 {[%clk 0:01:39.8]} 12. Kd1 {[%clk
0:02:59.3]} 12... Bf5 {[%clk 0:01:31.7]} 13. b3 {[%clk 0:02:55.6]} 13... c5
{[%clk 0:01:29.8]} 14. Bf4 {[%clk 0:02:47.5]} 14... Rad8 {[%clk 0:01:18.5]} 15.
Bb5 {[%clk 0:02:44.9]} 15... Re6 {[%clk 0:01:18.4]} 16. Re1 {[%clk 0:02:41.4]}
16... f6 {[%clk 0:01:11.6]} 17. Bf1 {[%clk 0:02:10.6]} 17... d4 {[%clk
0:00:47.8]} 18. c4 {[%clk 0:02:09.5]} 18... h5 {[%clk 0:00:41.1]} 19. Kd2 {[%clk
0:02:02.9]} 19... g5 {[%clk 0:00:38.1]} 20. Bh2 {[%clk 0:02:03.1]} 20... Rde8
{[%clk 0:00:31.5]} 21. f4 {[%clk 0:01:56.4]} 21... Nf7 {[%clk 0:00:31.1]} 22.
Rxe6 {[%clk 0:01:55.3]} 22... Rxe6 {[%clk 0:00:31]} 23. Bd3 {[%clk 0:01:42.5]}
23... Bxd3 {[%clk 0:00:23.5]} 24. cxd3 {[%clk 0:01:43.4]} 24... g4 {[%clk
0:00:12.2]} 25. hxg4 {[%clk 0:01:44.3]} 25... hxg4 {[%clk 0:00:13]} 26. b4
{[%clk 0:01:44.6]} 26... b6 {[%clk 0:00:07.2]} 27. f5 {[%clk 0:01:45]} 27... Re7
{[%clk 0:00:05.8]} 28. bxc5 {[%clk 0:01:43.2]} 28... bxc5 {[%clk 0:00:06.7]} 29.
Rb1 {[%clk 0:01:43.9]} 29... Nh6 {[%clk 0:00:06.6]} 30. Bd6 {[%clk 0:01:41.4]}
30... Re8 {[%clk 0:00:05.6]} 31. Bxc5 {[%clk 0:01:31.5]} 31... Nxf5 {[%clk
0:00:06.2]} 32. Rf1 {[%clk 0:01:32]} 32... Ng3 {[%clk 0:00:03.6]} 33. Rxf6
{[%clk 0:01:31.3]} 33... Re2+ {[%clk 0:00:03.8]} 34. Kd1 {[%clk 0:01:31.1]}
34... Rxg2 {[%clk 0:00:04.6]} 35. Rg6+ {[%clk 0:01:26.8]} 35... Kf7 {[%clk
0:00:05.1]} 36. Rxg4 {[%clk 0:01:27.7]} 36... Rg1+ {[%clk 0:00:04.3]} 37. Kc2
{[%clk 0:01:28.3]} 37... Rg2+ {[%clk 0:00:04.3]} 38. Kb3 {[%clk 0:01:28.6]}
38... Ke6 {[%clk 0:00:02.2]} 39. Bxd4 {[%clk 0:01:25.1]} 39... Kf5 {[%clk
0:00:02.4]} 40. Rg8 {[%clk 0:01:25]} 40... Kf4 {[%clk 0:00:02.6]} 41. Bxa7
{[%clk 0:01:25.4]} 41... Kf3 {[%clk 0:00:03.1]} 42. Bb8 {[%clk 0:01:25.4]} 1-0

[Event "Late-Titled-Tuesday-Blitz-March-05-2024"]
[Site "Chess.com"]
[Date "2024.03.05"]
[Round "6"]
[White "esteban062000"]
[Black "FMOlexandrProhorov"]
[Result "0-1"]
[WhiteElo "2131"]
[BlackElo "2351"]
[TimeControl "180+1"]
[EndTime "15:04:19 PST"]
[Termination "FMOlexandrProhorov won by resignation"]

1. e4 {[%clk 0:03:00.9]} 1... c5 {[%clk 0:02:57.9]} 2. d4 {[%clk 0:02:58]} 2...
cxd4 {[%clk 0:02:56.4]} 3. c3 {[%clk 0:02:58.5]} 3... Nf6 {[%clk 0:02:56]} 4. e5
{[%clk 0:02:58]} 4... Nd5 {[%clk 0:02:56.2]} 5. cxd4 {[%clk 0:02:58]} 5... Nc6
{[%clk 0:02:55.7]} 6. Nf3 {[%clk 0:02:58.3]} 6... d6 {[%clk 0:02:51.3]} 7. exd6
{[%clk 0:02:41.1]} 7... Qxd6 {[%clk 0:02:50.3]} 8. Bd3 {[%clk 0:02:33.5]} 8...
Bg4 {[%clk 0:02:47.9]} 9. O-O {[%clk 0:02:32.7]} 9... Bxf3 {[%clk 0:02:37.4]}
10. Qxf3 {[%clk 0:02:27.8]} 10... Nxd4 {[%clk 0:02:34.7]} 11. Qe4 {[%clk
0:02:22]} 11... Nc6 {[%clk 0:02:28.2]} 12. Bb5 {[%clk 0:02:18.7]} 12... e6
{[%clk 0:02:27.2]} 13. Rd1 {[%clk 0:02:13]} 13... Be7 {[%clk 0:02:23.7]} 14. Nd2
{[%clk 0:02:02.5]} 14... O-O {[%clk 0:02:22.1]} 15. Nc4 {[%clk 0:02:02]} 15...
Qc5 {[%clk 0:02:18.8]} 16. Bxc6 {[%clk 0:01:55.7]} 16... Qxc6 {[%clk 0:02:10.8]}
17. Ne5 {[%clk 0:01:53.7]} 17... Qc7 {[%clk 0:02:06.3]} 18. Nf3 {[%clk
0:01:46.6]} 18... Bf6 {[%clk 0:02:03.5]} 19. Rb1 {[%clk 0:01:42.2]} 19... Rac8
{[%clk 0:01:54.1]} 20. Bg5 {[%clk 0:01:41]} 20... Qc4 {[%clk 0:01:45.8]} 21. Qe1
{[%clk 0:01:26.8]} 21... Bxg5 {[%clk 0:01:39.3]} 22. Nxg5 {[%clk 0:01:26.1]}
22... Qg4 {[%clk 0:01:39.4]} 23. Nf3 {[%clk 0:00:58.9]} 23... Nf4 {[%clk
0:01:30.9]} 24. Qf1 {[%clk 0:00:56.3]} 24... Rc2 {[%clk 0:01:27.1]} 25. Rd2
{[%clk 0:00:53.1]} 25... Rfc8 {[%clk 0:01:14.7]} 26. Rbd1 {[%clk 0:00:50.2]}
26... h6 {[%clk 0:01:07]} 27. Ne5 {[%clk 0:00:38.6]} 27... Qg5 {[%clk
0:01:02.6]} 28. Nf3 {[%clk 0:00:33.4]} 28... Qh5 {[%clk 0:00:57.6]} 29. Rd8+
{[%clk 0:00:31.7]} 29... Rxd8 {[%clk 0:00:56.9]} 30. Rxd8+ {[%clk 0:00:32.6]}
30... Kh7 {[%clk 0:00:57.4]} 31. Qb1 {[%clk 0:00:30.8]} 31... Qg6 {[%clk
0:00:48.1]} 32. g3 {[%clk 0:00:30.8]} 32... Nh3+ {[%clk 0:00:47.1]} 33. Kh1
{[%clk 0:00:27.7]} 33... Nxf2+ {[%clk 0:00:46.1]} 34. Kg1 {[%clk 0:00:28]} 34...
Nh3+ {[%clk 0:00:44.9]} 35. Kh1 {[%clk 0:00:28.3]} 35... Qe4 {[%clk 0:00:44.9]}
0-1

[Event "Late-Titled-Tuesday-Blitz-March-05-2024"]
[Site "Chess.com"]
[Date "2024.03.05"]
[Round "6"]
[White "Mikasinski"]
[Black "ContrVersia"]
[Result "0-1"]
[WhiteElo "2677"]
[BlackElo "2869"]
[TimeControl "180+1"]
[EndTime "15:04:20 PST"]
[Termination "ContrVersia won by resignation"]

1. e4 {[%clk 0:03:00.9]} 1... c5 {[%clk 0:02:58.5]} 2. c3 {[%clk 0:03:00.8]}
2... Nf6 {[%clk 0:02:57.3]} 3. e5 {[%clk 0:03:00.9]} 3... Nd5 {[%clk 0:02:57.8]}
4. Nf3 {[%clk 0:02:58.7]} 4... Nc6 {[%clk 0:02:57.3]} 5. d4 {[%clk 0:02:48.8]}
5... cxd4 {[%clk 0:02:55.1]} 6. Bc4 {[%clk 0:02:48.4]} 6... Nb6 {[%clk
0:02:48.5]} 7. Bb3 {[%clk 0:02:45.8]} 7... d5 {[%clk 0:02:48]} 8. exd6 {[%clk
0:02:40.4]} 8... Qxd6 {[%clk 0:02:47.6]} 9. O-O {[%clk 0:02:35.2]} 9... Be6
{[%clk 0:02:28.2]} 10. Re1 {[%clk 0:02:07.8]} 10... Bxb3 {[%clk 0:02:22.4]} 11.
Qxb3 {[%clk 0:02:07.4]} 11... e6 {[%clk 0:02:23.3]} 12. cxd4 {[%clk 0:01:57.3]}
12... Be7 {[%clk 0:02:22.3]} 13. Nc3 {[%clk 0:01:57.1]} 13... O-O {[%clk
0:02:22.2]} 14. Be3 {[%clk 0:01:50.5]} 14... Rfd8 {[%clk 0:02:21.2]} 15. Rad1
{[%clk 0:01:45.6]} 15... Qb4 {[%clk 0:02:14.1]} 16. Qc2 {[%clk 0:01:39.5]} 16...
Nd5 {[%clk 0:02:14.4]} 17. a3 {[%clk 0:01:30.1]} 17... Qa5 {[%clk 0:02:14.1]}
18. Ne4 {[%clk 0:01:22.4]} 18... Rac8 {[%clk 0:02:13.6]} 19. Qb1 {[%clk
0:01:21.8]} 19... Nxe3 {[%clk 0:01:52.7]} 20. Rxe3 {[%clk 0:01:20.2]} 20... Rd7
{[%clk 0:01:50.8]} 21. Red3 {[%clk 0:01:16.8]} 21... Rcd8 {[%clk 0:01:50.3]} 22.
h3 {[%clk 0:01:15.9]} 22... Qf5 {[%clk 0:01:49]} 23. Ng3 {[%clk 0:01:13]} 23...
Qg6 {[%clk 0:01:49]} 24. Qa2 {[%clk 0:00:56.3]} 24... Bf6 {[%clk 0:01:37.7]} 25.
d5 {[%clk 0:00:51.2]} 25... Ne7 {[%clk 0:01:36.8]} 26. d6 {[%clk 0:00:37.2]}
26... Nd5 {[%clk 0:01:36.6]} 27. Qb3 {[%clk 0:00:29.8]} 27... b6 {[%clk
0:01:29.6]} 28. Qa4 {[%clk 0:00:30]} 28... a5 {[%clk 0:01:28.7]} 29. Qb5 {[%clk
0:00:29.5]} 29... Rxd6 {[%clk 0:01:28.2]} 30. Re1 {[%clk 0:00:26.2]} 30... Nc7
{[%clk 0:01:20.9]} 31. Qc4 {[%clk 0:00:16.1]} 31... Rxd3 {[%clk 0:01:18.1]} 32.
Qxc7 {[%clk 0:00:16.5]} 32... h5 {[%clk 0:01:17.6]} 33. Qxb6 {[%clk 0:00:14.1]}
33... Rxf3 {[%clk 0:01:16.4]} 34. gxf3 {[%clk 0:00:07.8]} 34... h4 {[%clk
0:01:16.6]} 35. Re4 {[%clk 0:00:03.9]} 35... hxg3 {[%clk 0:01:13.7]} 36. Qxa5
{[%clk 0:00:04.1]} 36... Rd1+ {[%clk 0:01:09.7]} 37. Re1 {[%clk 0:00:03.9]}
37... gxf2+ {[%clk 0:01:09.7]} 38. Kxf2 {[%clk 0:00:03.9]} 38... Bh4+ {[%clk
0:01:09.9]} 0-1